fUSD/lending_fUSD_20250110
["ID","MTS","AMOUNT","RATE_DAILY","PERIOD"]
[348470100,1736544641338,-301.153203,0.00011913,2]
[348470101,1736544641347,-500.0,0.00011913,2]
[348470102,1736544641360,-500.0,0.00011913,2]
[348470103,1736544641370,-500.0,0.00011913,2]
[348470104,1736544641380,-410.124476,0.00011913,2]
[348470105,1736544641389,-500.0,0.00011913,2]
[348470106,1736544641399,-500.0,0.00011913,2]
[348470107,1736544641409,-500.0,0.00011913,2]
[348470108,1736544641419,-500.0,0.00011913,2]
[348470109,1736544641429,-500.0,0.00011913,2]
[348470110,1736544641439,-500.0,0.00011913,2]
[348470111,1736544641450,-500.0,0.00011913,2]
[348470112,1736544641459,-500.0,0.00011913,2]
[348470113,1736544641470,-500.0,0.00011913,2]
[348470114,1736544641479,-500.0,0.00011913,2]
[348470115,1736544641489,-500.0,0.00011913,2]
[348470116,1736544641499,-500.0,0.00011913,2]
[348470117,1736544641510,-687.7,0.00011913,2]
[348470118,1736544641519,-500.0,0.00011913,2]
[348470119,1736544641529,-500.0,0.00011913,2]
[348470120,1736544641538,-152.143705,0.00011913,2]
[348470121,1736544641548,-210.49,0.00011913,2]
[348470122,1736544641558,-500.0,0.00011913,2]
[348470123,1736544641567,-500.0,0.00011913,2]
[348470124,1736544641576,-1192.21,0.00011913,2]
[348470125,1736544641586,-500.0,0.00011913,2]
[348470126,1736544641595,-500.0,0.00011913,2]
[348470127,1736544641605,-500.0,0.00011913,2]
[348470128,1736544641614,-500.0,0.00011913,2]
[348470129,1736544641623,-500.0,0.00011913,2]
[348470130,1736544641633,-826.98,0.00011913,2]
[348470131,1736544641642,-971.97,0.00011913,2]
[348470132,1736544641651,-1122.44,0.00011913,2]
[348470133,1736544641660,-500.0,0.00011913,2]
[348470134,1736544641670,-500.0,0.00011913,2]
[348470135,1736544641680,-3043.32,0.00011913,2]
[348470136,1736544641689,-500.0,0.00011913,2]
[348470137,1736544641700,-500.0,0.00011913,2]
[348470138,1736544641710,-500.0,0.00011913,2]
[348470139,1736544641720,-1710.75,0.00011913,2]
[348470140,1736544641730,-500.0,0.00011913,2]
[348470141,1736544641740,-500.0,0.00011913,2]
[348470142,1736544641750,-1181.8,0.00011913,2]
[348470143,1736544641761,-600.3,0.00011913,2]
[348470144,1736544641771,-500.0,0.00011913,2]
[348470145,1736544641780,-1364.15,0.00011913,2]
[348470146,1736544641790,-1064.58,0.00011913,2]
[348470147,1736544641799,-621.39,0.00011913,2]
[348470148,1736544641808,-1632.37,0.00011913,2]
[348470149,1736544641818,-500.0,0.00011913,2]
[348470150,1736544641829,-1805.75,0.00011913,2]
[348470151,1736544641839,-1445.17,0.00011913,2]
[348470152,1736544641849,-500.0,0.00011913,2]
[348470153,1736544641860,-500.0,0.00011913,2]
[348470154,1736544641870,-500.0,0.00011913,2]
[348470155,1736544641879,-500.0,0.00011913,2]
[348470156,1736544641890,-500.0,0.00011913,2]
[348470157,1736544641899,-500.0,0.00011913,2]
[348470158,1736544641908,-1785.34,0.00011913,2]
[348470159,1736544641918,-500.0,0.00011913,2]
[348470160,1736544641927,-503.66,0.00011913,2]
[348470161,1736544641937,-500.0,0.00011913,2]
[348470162,1736544641949,-500.0,0.00011913,2]
[348470163,1736544641959,-993.36,0.00011913,2]
[348470164,1736544641969,-500.0,0.00011913,2]
[348470165,1736544641979,-500.0,0.00011913,2]
[348470166,1736544641989,-1470.73,0.00011913,2]
[348470167,1736544641999,-500.0,0.00011913,2]
[348470168,1736544642009,-500.0,0.00011913,2]
[348470169,1736544642019,-500.0,0.00011913,2]
[348470170,1736544642029,-702.53,0.00011913,2]
[348470171,1736544642039,-500.0,0.00011913,2]
[348470172,1736544642049,-500.0,0.00011913,2]
[348470173,1736544642059,-500.0,0.00011913,2]
[348470174,1736544642069,-532.78,0.00011913,2]
[348470175,1736544642079,-500.0,0.00011913,2]
[348470176,1736544642089,-500.0,0.00011913,2]
[348470177,1736544642100,-699.25,0.00011913,2]
[348470178,1736544642109,-833.36,0.00011913,2]
[348470179,1736544642119,-500.0,0.00011913,2]
[348470180,1736544642128,-500.0,0.00011913,2]
[348470181,1736544642141,-731.14,0.00011914,2]
[348470182,1736544642151,-523.01,0.00011914,2]
[348470183,1736544642161,-552.94,0.00011914,2]
[348470184,1736544642170,-500.0,0.00011914,2]
[348470185,1736544642181,-500.0,0.00011914,2]
[348470186,1736544642191,-771.21,0.00011914,2]
[348470187,1736544642202,-500.0,0.00011914,2]
[348470188,1736544642211,-500.0,0.00011914,2]
[348470189,1736544642221,-500.0,0.00011914,2]
[348470190,1736544642231,-500.0,0.00011914,2]
[348470191,1736544642242,-568.51,0.00011914,2]
[348470192,1736544642263,-500.0,0.00011914,2]
[348470193,1736544642272,-2290.33,0.00011914,2]
[348470194,1736544642282,-1364.26,0.00011914,2]
[348470195,1736544642292,-742.37,0.00011914,2]
[348470196,1736544642301,-662.28,0.00011914,2]
[348470197,1736544642312,-1969.88,0.00011914,2]
[348470198,1736544642322,-1144.28,0.00011914,2]
[348470199,1736544642331,-2049.8,0.00011914,2]
[348470200,1736544642341,-690.67,0.00011914,2]
[348470201,1736544642351,-618.96,0.00011914,2]
[348470204,1736544642364,-2076.89,0.00011914,2]
[348470206,1736544642376,-559.88,0.00011914,2]
[348470207,1736544642386,-1474.14,0.00011914,2]
[348470208,1736544642396,-595.01,0.00011914,2]
[348470209,1736544642405,-500.0,0.00011914,2]
[348470210,1736544642414,-875.66,0.00011914,2]
[348470211,1736544642424,-500.0,0.00011914,2]
[348470212,1736544642438,-500.0,0.00011914,2]
[348470213,1736544642449,-1856.3,0.00011915,2]
[348470214,1736544642460,-500.0,0.00011915,2]
[348470215,1736544642469,-500.0,0.00011916,2]
[348470216,1736544642478,-677.27,0.00011917,2]
[348470217,1736544642487,-891.73,0.00011917,2]
[348470218,1736544642497,-1389.43,0.00011917,2]
[348470219,1736544642507,-788.58,0.00011917,2]
[348470220,1736544642516,-500.0,0.00011917,2]
[348470221,1736544642525,-1266.58,0.00011917,2]
[348470222,1736544642534,-500.0,0.00011917,2]
[348470223,1736544642543,-32362.65568617,0.00012,2]
[348470224,1736544642553,-17500.46419555,0.00012,2]
[348470225,1736544642562,-40355.12611944,0.00012,2]
[348470226,1736544642571,-852.40441773,0.00012,2]
[348470227,1736544642580,-22936.46816352,0.00012,2]
[348470228,1736544642589,-300.0,0.00012,2]
[348470229,1736544642598,-150.0,0.00012027,2]
[348470230,1736544642607,-206.34276099,0.00012043,2]
[348470231,1736544642616,-150.0,0.00012043,2]
[348470232,1736544642626,-150.0,0.00012044,2]
[348470233,1736544642635,-1500.0,0.00012046,2]
[348470234,1736544642644,-150.0,0.00012048,2]
[348470235,1736544642655,-532.8138993,0.00012053,2]
[348470236,1736544642665,-200.0,0.00012055,2]
[348470237,1736544642676,-500.0,0.00012071,2]
[348470238,1736544642686,-733.31,0.00012071,2]
[348470239,1736544642696,-500.0,0.00012071,2]
[348470240,1736544642705,-500.0,0.00012071,2]
[348470241,1736544642716,-500.0,0.00012071,2]
[348470242,1736544642726,-500.0,0.00012071,2]
[348470243,1736544642736,-150.0,0.00012078,2]
[348470244,1736544642746,-150.0,0.00012083,2]
[348470245,1736544642756,-150.0,0.00012087,2]
[348470246,1736544642765,-150.0,0.00012088,2]
[348470247,1736544642774,-1500.0,0.00012091,2]
[348470248,1736544642784,-150.0,0.00012095,2]
[348470249,1736544642793,-150.0,0.00012098,2]
[348470250,1736544642803,-150.0,0.000121,2]
[348470251,1736544642812,-150.0,0.00012102,2]
[348470252,1736544642822,-150.0,0.00012103,2]
[348470253,1736544642832,-500.0,0.00012115,2]
[348470254,1736544642842,-150.0,0.00012118,2]
[348470255,1736544642854,-1500.0,0.00012119,2]
[348470256,1736544642864,-150.0,0.00012124,2]
[348470257,1736544642874,-150.0,0.00012125,2]
[348470258,1736544642883,-150.0,0.00012138,2]
[348470259,1736544642892,-150.0,0.00012142,2]
[348470260,1736544642902,-150.0,0.00012146,2]
[348470261,1736544642911,-150.0,0.00012147,2]
[348470262,1736544642920,-150.0,0.00012151,2]
[348470263,1736544642930,-1500.0,0.00012156,2]
[348470264,1736544642946,-150.0,0.00012162,2]
[348470265,1736544642959,-150.0,0.00012163,2]
[348470266,1736544642974,-7070.985,0.00012174,2]
[348470267,1736544642988,-340.699,0.00012174,2]
[348470268,1736544643002,-1500.0,0.00012174,2]
[348470269,1736544643014,-150.0,0.00012176,2]
[348470270,1736544643024,-1500.0,0.00012177,2]
[348470271,1736544643036,-150.0,0.00012182,2]
[348470272,1736544643049,-500.0,0.00012185,2]
[348470273,1736544643061,-500.0,0.00012185,2]
[348470274,1736544643073,-500.0,0.00012185,2]
[348470275,1736544643085,-617.54870059,0.00012185,2]
[348470276,1736544643097,-500.0,0.00012185,2]
[348470277,1736544643110,-206.34276099,0.00012186,2]
[348470278,1736544643123,-500.0,0.00012187,2]
[348470279,1736544643135,-500.0,0.00012187,2]
[348470280,1736544643147,-531.81323498,0.00012187,2]
[348470281,1736544643159,-500.0,0.00012187,2]
[348470282,1736544643172,-500.0,0.00012187,2]
[348470283,1736544643183,-500.0,0.00012187,2]
[348470284,1736544643194,-500.0,0.00012187,2]
[348470285,1736544643205,-500.0,0.00012187,2]
[348470286,1736544643217,-500.0,0.00012187,2]
[348470287,1736544643230,-500.0,0.00012187,2]
[348470288,1736544643244,-500.0,0.00012187,2]
[348470289,1736544643258,-500.0,0.00012187,2]
[348470290,1736544643270,-500.0,0.00012187,2]
[348470291,1736544643283,-500.0,0.00012187,2]
[348470292,1736544643295,-500.0,0.00012187,2]
[348470293,1736544643309,-309.2,0.00012187,2]
[348470294,1736544643322,-301.153203,0.00012187,2]
[348470295,1736544643334,-500.0,0.00012187,2]
[348470296,1736544643347,-500.0,0.00012187,2]
[348470297,1736544643360,-500.0,0.00012187,2]
[348470298,1736544643375,-410.124476,0.00012187,2]
[348470299,1736544643389,-500.0,0.00012187,2]
[348470300,1736544643401,-500.0,0.00012187,2]
[348470301,1736544643416,-500.0,0.00012187,2]
[348470302,1736544643429,-500.0,0.00012187,2]
[348470303,1736544643441,-500.0,0.00012187,2]
[348470304,1736544643454,-500.0,0.00012187,2]
[348470305,1736544643465,-500.0,0.00012187,2]
[348470306,1736544643477,-500.0,0.00012187,2]
[348470308,1736544643490,-500.0,0.00012187,2]
[348470309,1736544643503,-500.0,0.00012187,2]
[348470310,1736544643515,-500.0,0.00012187,2]
[348470311,1736544643529,-500.0,0.00012187,2]
[348470312,1736544643541,-687.7,0.00012187,2]
[348470313,1736544643553,-500.0,0.00012187,2]
[348470314,1736544643564,-500.0,0.00012187,2]
[348470315,1736544643576,-500.0,0.00012187,2]
[348470316,1736544643588,-500.0,0.00012187,2]
[348470317,1736544643599,-1192.21,0.00012187,2]
[348470318,1736544643609,-500.0,0.00012187,2]
[348470319,1736544643621,-500.0,0.00012187,2]
[348470320,1736544643633,-151.781848,0.00012187,2]
[348470321,1736544643646,-500.0,0.00012187,2]
[348470322,1736544643660,-500.0,0.00012187,2]
[348470323,1736544643673,-500.0,0.00012187,2]
[348470324,1736544643686,-826.98,0.00012187,2]
[348470325,1736544643696,-971.97,0.00012187,2]
[348470326,1736544643708,-1122.44,0.00012187,2]
[348470327,1736544643718,-500.0,0.00012187,2]
[348470328,1736544643729,-500.0,0.00012187,2]
[348470329,1736544643741,-3043.32,0.00012187,2]
[348470330,1736544643753,-500.0,0.00012187,2]
[348470331,1736544643766,-500.0,0.00012187,2]
[348470332,1736544643778,-500.0,0.00012187,2]
[348470333,1736544643792,-1710.75,0.00012187,2]
[348470334,1736544643804,-500.0,0.00012187,2]
[348470335,1736544643817,-500.0,0.00012187,2]
[348470336,1736544643829,-1181.8,0.00012187,2]
[348470337,1736544643840,-600.3,0.00012187,2]
[348470338,1736544643850,-500.0,0.00012187,2]
[348470339,1736544643861,-1364.15,0.00012187,2]
[348470340,1736544643871,-1064.58,0.00012187,2]
[348470341,1736544643883,-621.39,0.00012187,2]
[348470342,1736544643894,-1632.37,0.00012187,2]
[348470343,1736544643905,-1805.75,0.00012187,2]
[348470344,1736544643917,-1445.17,0.00012187,2]
[348470345,1736544643928,-500.0,0.00012187,2]
[348470346,1736544643939,-500.0,0.00012187,2]
[348470347,1736544643951,-500.0,0.00012187,2]
[348470348,1736544643962,-500.0,0.00012187,2]
[348470349,1736544643973,-500.0,0.00012187,2]
[348470350,1736544643985,-500.0,0.00012187,2]
[348470351,1736544643996,-1785.34,0.00012187,2]
[348470352,1736544644007,-500.0,0.00012187,2]
[348470353,1736544644018,-500.0,0.00012187,2]
[348470354,1736544644029,-500.0,0.00012187,2]
[348470355,1736544644040,-993.36,0.00012187,2]
[348470356,1736544644051,-392.55667537,0.00012187,2]
[348470357,1736544644062,-500.0,0.00012187,2]
[348470358,1736544644074,-1470.73,0.00012187,2]
[348470359,1736544644085,-500.0,0.00012187,2]
[348470360,1736544644096,-500.0,0.00012187,2]
[348470361,1736544644108,-500.0,0.00012187,2]
[348470362,1736544644119,-702.53,0.00012187,2]
[348470363,1736544644130,-500.0,0.00012187,2]
[348470364,1736544644141,-500.0,0.00012187,2]
[348470365,1736544644152,-500.0,0.00012187,2]
[348470366,1736544644163,-532.78,0.00012187,2]
[348470367,1736544644175,-500.0,0.00012187,2]
[348470368,1736544644187,-500.0,0.00012187,2]
[348470369,1736544644199,-699.25,0.00012187,2]
[348470370,1736544644209,-833.36,0.00012187,2]
[348470371,1736544644221,-500.0,0.00012187,2]
[348470372,1736544644233,-500.0,0.00012187,2]
[348470373,1736544644245,-731.14,0.00012188,2]
[348470374,1736544644256,-523.01,0.00012188,2]
[348470375,1736544644271,-552.94,0.00012188,2]
[348470376,1736544644283,-500.0,0.00012188,2]
[348470377,1736544644294,-500.0,0.00012188,2]
[348470378,1736544644305,-771.21,0.00012188,2]
[348470379,1736544644316,-425.74545214,0.00012188,2]
[348470380,1736544644328,-500.0,0.00012188,2]
[348470381,1736544644339,-500.0,0.00012188,2]
[348470382,1736544644353,-568.51,0.00012188,2]
[348470383,1736544644364,-2290.33,0.00012188,2]
[348470384,1736544644377,-1364.26,0.00012188,2]
[348470385,1736544644388,-742.37,0.00012188,2]
[348470386,1736544644399,-662.28,0.00012188,2]
[348470387,1736544644411,-1969.88,0.00012188,2]
[348470388,1736544644422,-1144.28,0.00012188,2]
[348470389,1736544644433,-2049.8,0.00012188,2]
[348470390,1736544644444,-690.67,0.00012188,2]
[348470391,1736544644456,-618.96,0.00012188,2]
[348470392,1736544644467,-2076.89,0.00012188,2]
[348470393,1736544644478,-559.88,0.00012188,2]
[348470394,1736544644490,-1474.14,0.00012188,2]
[348470395,1736544644501,-595.01,0.00012188,2]
[348470396,1736544644512,-500.0,0.00012188,2]
[348470397,1736544644523,-875.66,0.00012188,2]
[348470398,1736544644536,-500.0,0.00012188,2]
[348470399,1736544644548,-500.0,0.00012188,2]
[348470400,1736544644560,-1856.3,0.00012189,2]
[348470401,1736544644571,-500.0,0.00012189,2]
[348470402,1736544644583,-500.0,0.0001219,2]
[348470403,1736544644594,-1500.0,0.0001219,2]
[348470404,1736544644605,-677.27,0.00012191,2]
[348470405,1736544644617,-891.73,0.00012191,2]
[348470406,1736544644629,-1389.43,0.00012191,2]
[348470407,1736544644640,-788.58,0.00012191,2]
[348470408,1736544644651,-500.0,0.00012191,2]
[348470409,1736544644662,-1266.58,0.00012191,2]
[348470410,1736544644674,-500.0,0.00012191,2]
[348470411,1736544644685,-150.0,0.00012196,2]
[348470412,1736544644696,-15325.8738,0.000122,2]
[348470413,1736544644708,-272.24372096,0.000122,2]
[348470414,1736544644720,-315.3779903,0.000122,2]
[348470415,1736544644732,-897.13739692,0.000122,2]
[348470416,1736544644744,-7330.02499153,0.000122,2]
[348470417,1736544644756,-150.0,0.00012202,2]
[348470418,1736544644768,-1500.0,0.00012203,2]
[348470419,1736544644779,-150.0,0.00012205,2]
[348470420,1736544644790,-150.0,0.00012208,2]
[348470421,1736544644802,-150.0,0.00012216,2]
[348470422,1736544644813,-150.0,0.00012217,2]
[348470423,1736544644824,-150.0,0.00012219,2]
[348470424,1736544644835,-150.0,0.00012219,2]
[348470425,1736544644847,-150.0,0.00012232,2]
[348470426,1736544644859,-150.0,0.00012233,2]
[348470427,1736544644871,-150.0,0.00012245,2]
[348470428,1736544644882,-150.0,0.00012248,2]
[348470429,1736544644893,-150.0,0.00012248,2]
[348470430,1736544644905,-150.0,0.00012251,2]
[348470431,1736544644918,-150.0,0.00012258,2]
[348470432,1736544644929,-1500.0,0.0001226,2]
[348470433,1736544644941,-150.0,0.00012262,2]
[348470434,1736544644952,-917.30224934,0.00012267,2]
[348470435,1736544644964,-150.0,0.00012268,2]
[348470436,1736544644977,-153.0,0.00012275,2]
[348470437,1736544644989,-153.0,0.00012275,2]
[348470438,1736544645001,-153.0,0.00012275,2]
[348470439,1736544645012,-153.0,0.00012275,2]
[348470440,1736544645023,-153.0,0.00012275,2]
[348470441,1736544645035,-153.0,0.00012275,2]
[348470442,1736544645045,-153.0,0.00012275,2]
[348470443,1736544645056,-153.0,0.00012275,2]
[348470444,1736544645067,-153.0,0.00012275,2]
[348470445,1736544645077,-153.0,0.00012275,2]
[348470446,1736544645088,-153.0,0.00012275,2]
[348470447,1736544645099,-153.0,0.00012275,2]
[348470448,1736544645110,-153.0,0.00012276,2]
[348470449,1736544645122,-153.0,0.00012276,2]
[348470450,1736544645133,-153.0,0.00012276,2]
[348470451,1736544645146,-153.0,0.00012276,2]
[348470452,1736544645158,-153.0,0.00012278,2]
[348470453,1736544645168,-153.0,0.00012278,2]
[348470454,1736544645179,-150.0,0.00012278,2]
[348470455,1736544645190,-153.0,0.00012279,2]
[348470456,1736544645201,-153.0,0.00012279,2]
[348470457,1736544645212,-153.0,0.00012279,2]
[348470458,1736544645224,-150.0,0.0001229,2]
[348470459,1736544645235,-4085.3314878,0.00012292,2]
[348470460,1736544645247,-400.0766408,0.00012292,2]
[348470461,1736544645260,-172.55839454,0.00012292,2]
[348470462,1736544645270,-441.9926145,0.00012292,2]
[348470463,1736544645282,-10487.1343168,0.00012292,2]
[348470464,1736544645292,-699.3395966,0.00012292,2]
[348470465,1736544645303,-5154.7020423,0.00012292,2]
[348470466,1736544645314,-500.0,0.00012298,2]
[348470467,1736544645324,-150.0,0.00012299,2]
[348470468,1736544645335,-2000.0,0.00012299,2]
[348470469,1736544645346,-2000.0,0.00012299,2]
[348470470,1736544645357,-2000.0,0.00012299,2]
[348470471,1736544645367,-2000.0,0.00012299,2]
[348470472,1736544645378,-2000.0,0.00012299,2]
[348470473,1736544645388,-2000.0,0.00012299,2]
[348470474,1736544645399,-2000.0,0.00012299,2]
[348470475,1736544645410,-2031.3818,0.00012299,2]
[348470476,1736544645420,-2000.0,0.00012299,2]
[348470477,1736544645432,-500.0,0.00012299,2]
[348470478,1736544645444,-500.0,0.00012299,2]
[348470479,1736544645456,-500.0,0.00012299,2]
[348470480,1736544645466,-500.0,0.00012299,2]
[348470481,1736544645476,-500.0,0.00012299,2]
[348470482,1736544645487,-500.0,0.00012299,2]
[348470483,1736544645498,-368.36,0.00012299,2]
[348470484,1736544645508,-500.0,0.00012299,2]
[348470485,1736544645522,-3000.0,0.00012299,2]
[348470486,1736544645533,-500.0,0.00012299,2]
[348470487,1736544645546,-999.0,0.00012299,2]
[348470488,1736544645558,-500.0,0.00012299,2]
[348470489,1736544645569,-500.0,0.00012299,2]
[348470490,1736544645579,-500.0,0.00012299,2]
[348470491,1736544645591,-500.0,0.00012299,2]
[348470492,1736544645601,-762.27,0.00012299,2]
[348470493,1736544645612,-794.75,0.00012299,2]
[348470494,1736544645623,-1418.52,0.00012299,2]
[348470495,1736544645635,-1330.0,0.00012299,2]
[348470496,1736544645647,-375.90304495,0.000123,2]
[348470497,1736544645660,-536351.17556338,0.000123,2]
[348470498,1736544646241,-380.03742601,0.000123,2]
[348470499,1736544646445,-404.35089913,9.999e-05,2]
[348470500,1736544646483,-95.64910087,9.999e-05,2]
[348470501,1736544646493,-260.81795951,0.0001,2]
[348470502,1736544646503,-500.0,0.00010273,2]
[348470503,1736544646513,-500.0,0.00010547,2]
[348470504,1736544646524,-500.0,0.00010821,2]
[348470505,1736544646534,-148.22651176,0.00011095,2]
[348470506,1736544646546,-342.38583115,0.00011095,2]
[348470507,1736544646561,-9.38765709,0.00011095,2]
[348470508,1736544646571,-333.50496119,0.00011369,2]
[348470509,1736544646582,-166.49503881,0.00011369,2]
[348470510,1736544646591,-174.84655652,0.000123,2]
[348470511,1736544646612,-3318.96264027,0.000123,2]
[348470512,1736544646630,-419.79,0.000123,2]
[348470513,1736544646641,-18042.53485815,0.000123,2]
[348470514,1736544646653,-1693.83655973,0.000123,2]
[348470515,1736544647091,-500.0,0.00010819,2]
[348470516,1736544647101,-500.0,0.00011639,2]
[348470517,1736544647111,-500.0,0.00011643,2]
[348470518,1736544647121,-635.0,0.00011716,2]
[348470519,1736544647130,-500.0,0.00011917,2]
[348470520,1736544647140,-500.0,0.00012191,2]
[348470521,1736544647150,-28551.48570744,0.000123,2]
[348470522,1736544647161,-2179696.12519014,0.000123,2]
[348470523,1736544647173,-23307.84369583,0.000123,2]
[348470524,1736544647184,-23875.000004,0.000123,2]
[348470525,1736544647294,-29.85498003,0.000123,2]
[348470526,1736544647307,-1735.0,0.000123,2]
[348470527,1736544647324,-607.22410007,0.000123,2]
[348470528,1736544647336,-924.7454,0.000123,2]
[348470529,1736544647347,-778870.83616857,0.000123,2]
[348470530,1736544647359,-661.94800014,0.000123,2]
[348470531,1736544647574,-390.21,9.999e-05,2]
[348470532,1736544647584,-265.3623265,0.00010819,2]
[348470533,1736544647596,-234.6376735,0.00010819,2]
[348470534,1736544647606,-260.8179595,0.0001105,2]
[348470535,1736544647616,-500.0,0.00011093,2]
[348470536,1736544647625,-81451.11278955,0.000123,2]
[348470537,1736544647637,-64818.62043587,0.000123,2]
[348470538,1736544647648,-44098.50000238,0.000123,2]
[348470539,1736544647660,-1265.623131,0.000123,2]
[348470540,1736544647672,-5337.5,0.000123,2]
[348470541,1736544647688,-363.0,0.000123,2]
[348470542,1736544647700,-7392.2275,0.000123,2]
[348470543,1736544647713,-6300.0,0.000123,2]
[348470544,1736544647734,-5254.55817386,0.000123,2]
[348470545,1736544647773,-3298.12190352,0.000123,2]
[348470546,1736544647785,-6735.34923962,0.000123,2]
[348470547,1736544647811,-500.0,0.00011093,2]
[348470548,1736544647822,-68957.29340278,0.000123,2]
[348470549,1736545261151,573.39,8.219e-05,2]
[348470562,1736545837581,-1000.0,9.441e-05,2]
[348470563,1736545837591,-549.42,9.476e-05,2]
[348470564,1736545837601,-233.99,9.604e-05,2]
[348470565,1736545837614,-2158.2424,9.604e-05,2]
[348470566,1736545837625,-1129.90466034,9.604e-05,2]
[348470567,1736545837691,-948.53,9.604e-05,2]
[348470568,1736545837754,-247.83293966,9.604e-05,2]
[348470569,1736545837763,-588.89278243,9.662e-05,2]
[348470570,1736545837776,-587.9,9.664e-05,2]
[348470571,1736545837786,-161.89,9.683e-05,2]
[348470572,1736545837796,-250.0,9.793e-05,2]
[348470573,1736545837806,-1000.0,9.9e-05,2]
[348470574,1736545837815,-250.0,9.936e-05,2]
[348470575,1736545837826,-171.56,9.938e-05,2]
[348470576,1736545837838,-1384.3592,9.973e-05,2]
[348470577,1736545837849,-299.99,9.998e-05,2]
[348470578,1736545837859,-150.0,9.998e-05,2]
[348470579,1736545837869,-500.0,9.999e-05,2]
[348470580,1736545837879,-500.0,9.999e-05,2]
[348470581,1736545837890,-354.94,9.999e-05,2]
[348470582,1736545837900,-500.0,9.999e-05,2]
[348470583,1736545837910,-500.0,9.999e-05,2]
[348470584,1736545837920,-500.0,9.999e-05,2]
[348470585,1736545837930,-500.0,9.999e-05,2]
[348470587,1736545837940,-500.0,9.999e-05,2]
[348470589,1736545837951,-500.0,9.999e-05,2]
[348470591,1736545837966,-500.0,9.999e-05,2]
[348470593,1736545837975,-500.0,9.999e-05,2]
[348470595,1736545837984,-500.0,9.999e-05,2]
[348470597,1736545837995,-500.0,9.999e-05,2]
[348470598,1736545838004,-309.29692727,9.999e-05,2]
[348470726,1736545840026,-331.5339285,9.999e-05,2]
[348470727,1736545840036,-500.0,9.999e-05,2]
[348470728,1736545840045,-302.14991446,9.999e-05,2]
[348470897,1736545842790,-1947.848,9.476e-05,2]
[348470898,1736545842802,-8350.10106693,9.476e-05,2]
[348470899,1736545842813,-197.85008554,9.999e-05,2]
[348470900,1736545842823,-500.0,9.999e-05,2]
[348470901,1736545842833,-500.0,9.999e-05,2]
[348470902,1736545842843,-500.0,9.999e-05,2]
[348470903,1736545842852,-500.0,9.999e-05,2]
[348470904,1736545842862,-500.0,9.999e-05,2]
[348470905,1736545842872,-500.0,9.999e-05,2]
[348470906,1736545842882,-500.0,9.999e-05,2]
[348470907,1736545842893,-500.0,9.999e-05,2]
[348470908,1736545842903,-500.0,9.999e-05,2]
[348470909,1736545842914,-500.0,9.999e-05,2]
[348470910,1736545842924,-500.0,9.999e-05,2]
[348470911,1736545842934,-500.0,9.999e-05,2]
[348470912,1736545842943,-500.0,9.999e-05,2]
[348470913,1736545842952,-500.0,9.999e-05,2]
[348470914,1736545842962,-500.0,9.999e-05,2]
[348470916,1736545842976,-500.0,9.999e-05,2]
[348470918,1736545842985,-500.0,9.999e-05,2]